fUST/lending_fUST_20250905
["ID","MTS","AMOUNT","RATE_DAILY","PERIOD"]
[383650111,1757069030761,1500.0,0.0001356,2]
[383650112,1757069047277,1500.0,0.0001356,2]
[383650113,1757069055678,1500.0,0.0001356,2]
[383650114,1757069071111,1500.0,0.0001356,2]
[383650115,1757069079219,1500.0,0.0001356,2]
[383650116,1757069094950,824.4217211,0.0001356,2]
[383650117,1757069104230,1500.0,0.0001356,2]
[383650118,1757069128059,1500.0,0.0001356,2]
[383650119,1757069153628,1500.0,0.0001356,2]
[383650120,1757069176590,169.33814378,0.00013597,2]
[383650121,1757069177289,1500.0,0.0001356,2]
[383650122,1757069192830,152.7229256,0.00013598,2]
[383650123,1757069201496,1500.0,0.0001356,2]
[383650124,1757069225278,1500.0,0.0001356,2]
[383650125,1757069249856,1500.0,0.0001356,2]
[383650126,1757069273782,1155.31653282,0.0001356,2]
[383650142,1757069432423,-805.03167751,0.00013697,2]
[383650144,1757069432434,-394.96832249,0.00013697,2]
[383650146,1757069432444,-133.73734927,0.00013698,2]
[383650149,1757069432476,-346.26265073,0.00013698,2]
[383650152,1757069432486,-290.9000671,0.00013698,2]
[383650154,1757069432498,-189.0999329,0.00013698,2]
[383650156,1757069432508,-480.0,0.00013698,2]
[383650158,1757069432517,-72.75114257,0.00013698,2]
[383650160,1757069432528,-407.24885743,0.00013698,2]
[383650163,1757069432541,-297.00114272,0.00013698,2]
[383650260,1757069438307,-198.42885728,0.00013698,2]
[383650261,1757069438317,-146.57114272,0.00013698,2]
[383650273,1757069440781,-333.42885728,0.00013698,2]
[383650274,1757069440790,-480.0,0.00013698,2]
[383650275,1757069440800,-480.0,0.00013698,2]
[383650276,1757069440809,-480.0,0.00013698,2]
[383650277,1757069440819,-480.0,0.00013698,2]
[383650278,1757069440828,-480.0,0.00013698,2]
[383650279,1757069440837,-480.0,0.00013698,2]
[383650280,1757069440848,-480.0,0.00013698,2]
[383650281,1757069440857,-480.0,0.00013698,2]
[383650282,1757069440867,-480.0,0.00013698,2]
[383650283,1757069440877,-480.0,0.00013698,2]
[383650284,1757069440887,-480.0,0.00013698,2]
[383650285,1757069440897,-480.0,0.00013698,2]
[383650286,1757069440907,-253.09364068,0.00013698,2]
[383650336,1757069555647,300.0,0.0001356,2]
[383650337,1757069582676,300.0,0.00013696,2]
[383650338,1757069589824,61219.9506767,0.00013598,2]
[383650339,1757069589851,26125.08443581,0.00013598,2]
[383650340,1757069625349,2641.0226084,0.0001356,2]
[383650341,1757069649588,300.0,0.00013559,2]
[383650342,1757069672410,300.0,0.00013559,2]
[383650343,1757069695918,300.0,0.00013559,2]
[383650345,1757069719652,1030.0,0.00013559,2]
[383650346,1757069743515,1030.0,0.00013559,2]
[383650347,1757069767942,1030.0,0.00013559,2]
[383650348,1757069791490,1030.0,0.00013559,2]
[383650349,1757069815556,1030.0,0.00013559,2]
[383650350,1757069839055,1030.0,0.00013559,2]
[383650351,1757069862324,1030.0,0.00013559,2]
[383650352,1757069886765,1030.0,0.00013559,2]
[383650353,1757069911141,1030.0,0.00013559,2]
[383650354,1757069934646,1030.0,0.00013559,2]
[383650355,1757069958443,1030.0,0.00013559,2]
[383650356,1757069983026,477.61224769,0.00013559,2]
[383650358,1757070162401,308.0,0.0001344,2]
[383650359,1757070189206,174.45955432,0.00013598,2]
[383650363,1757070525601,244.24337607,0.00013598,2]
[383650364,1757070561840,168.0,0.00013308,2]
[383650365,1757070567165,168.0,0.00013397,2]
[383650413,1757070632769,-168.0,0.00013627,2]
[383650415,1757070632779,-308.0,0.0001363,2]
[383650416,1757070632789,-174.542962,0.00013677,2]
[383650420,1757070632822,-69.70041403,0.00013677,2]
[383650422,1757070632832,-300.0,0.00013697,2]
[383650424,1757070632842,-75.592454,0.00013697,2]
[383650426,1757070632854,-654.407546,0.00013697,2]
[383650428,1757070632863,-518.49258404,0.00013698,2]
[383650430,1757070632873,-480.0,0.00013698,2]
[383650432,1757070632883,-480.0,0.00013698,2]
[383650434,1757070632892,-480.0,0.00013698,2]
[383650436,1757070632902,-480.0,0.00013698,2]
[383650439,1757070632911,-480.0,0.00013698,2]
[383650442,1757070632920,-480.0,0.00013698,2]
[383650444,1757070632931,-480.0,0.00013698,2]
[383650446,1757070632940,-480.0,0.00013698,2]
[383650448,1757070632950,-480.0,0.00013698,2]
[383650449,1757070632959,-480.0,0.00013698,2]
[383650450,1757070632970,-480.0,0.00013698,2]
[383650452,1757070632979,-537.54184253,0.00013698,2]
[383650454,1757070632989,-480.0,0.00013698,2]
[383650455,1757070632999,-480.0,0.00013698,2]
[383650456,1757070633010,-480.0,0.00013698,2]
[383650457,1757070633019,-480.0,0.00013698,2]
[383650458,1757070633028,-480.0,0.00013698,2]
[383650459,1757070633038,-480.0,0.00013698,2]
[383650460,1757070633048,-480.0,0.00013698,2]
[383650461,1757070633058,-480.0,0.00013698,2]
[383650462,1757070633069,-480.0,0.00013698,2]
[383650463,1757070633078,-480.0,0.00013698,2]
[383650464,1757070633088,-480.0,0.00013698,2]
[383650465,1757070633110,-480.0,0.00013698,2]
[383650466,1757070633120,-480.0,0.00013698,2]
[383650467,1757070633134,-480.0,0.00013698,2]
[383650468,1757070633144,-480.0,0.00013698,2]
[383650469,1757070633153,-480.0,0.00013698,2]
[383650470,1757070633163,-480.0,0.00013698,2]
[383650471,1757070633173,-480.0,0.00013698,2]
[383650472,1757070633183,-480.0,0.00013698,2]
[383650473,1757070633193,-480.0,0.00013698,2]
[383650474,1757070633205,-480.0,0.00013698,2]
[383650475,1757070633214,-472.92792878,0.00013698,2]
[383650476,1757070633224,-1331.70885109,0.00013698,2]
[383650477,1757070633233,-480.0,0.00013698,2]
[383650478,1757070633244,-480.0,0.00013698,2]
[383650479,1757070633254,-480.0,0.00013698,2]
[383650480,1757070633263,-480.0,0.00013698,2]
[383650481,1757070633273,-480.0,0.00013698,2]
[383650482,1757070633283,-1360.04,0.00013698,2]
[383650483,1757070633292,-480.0,0.00013698,2]
[383650484,1757070633301,-1097.59,0.00013698,2]
[383650485,1757070633311,-480.0,0.00013698,2]
[383650486,1757070633321,-480.0,0.00013698,2]
[383650487,1757070633331,-1320.0,0.00013698,2]
[383650488,1757070633340,-499.86,0.00013698,2]
[383650489,1757070633350,-558.7,0.00013698,2]
[383650490,1757070633360,-712.11,0.00013698,2]
[383650491,1757070633370,-480.09,0.00013698,2]
[383650492,1757070633379,-736.65,0.00013698,2]
[383650493,1757070633390,-480.0,0.00013698,2]
[383650494,1757070633399,-480.0,0.00013698,2]
[383650495,1757070633409,-480.0,0.00013698,2]
[383650496,1757070633419,-2172.24,0.00013698,2]
[383650497,1757070633429,-480.0,0.00013698,2]
[383650498,1757070633439,-480.0,0.00013698,2]
[383650499,1757070633449,-222.30094504,0.00013698,2]
[383650500,1757070633458,-480.0,0.00013698,2]
[383650501,1757070633467,-331.38020216,0.00013698,2]
[383650502,1757070633477,-480.0,0.00013698,2]
[383650503,1757070633487,-480.0,0.00013698,2]
[383650504,1757070633496,-480.0,0.00013698,2]
[383650505,1757070633506,-2285.74,0.00013698,2]
[383650506,1757070633516,-607.78,0.00013698,2]
[383650507,1757070633525,-480.0,0.00013698,2]
[383650508,1757070633535,-480.0,0.00013698,2]
[383650509,1757070633545,-30213.87,0.00013698,2]
[383650510,1757070633556,-664.59,0.00013698,2]
[383650511,1757070633566,-1037.33,0.00013698,2]
[383650512,1757070633576,-251.89380878,0.00013698,2]
[383650513,1757070633586,-480.0,0.00013698,2]
[383650514,1757070633596,-602.72,0.00013698,2]
[383650515,1757070633605,-480.0,0.00013698,2]
[383650516,1757070633614,-540.24,0.00013698,2]
[383650517,1757070633626,-480.0,0.00013698,2]
[383650518,1757070633636,-480.0,0.00013698,2]
[383650519,1757070633646,-348.31889149,0.00013698,2]
[383650520,1757070633656,-480.0,0.00013698,2]
[383650521,1757070633666,-1028.69,0.00013698,2]
[383650522,1757070633676,-726.66,0.00013698,2]
[383650523,1757070633685,-480.0,0.00013698,2]
[383650524,1757070633696,-1571.97,0.00013698,2]
[383650525,1757070633705,-480.0,0.00013698,2]
[383650526,1757070633715,-870.77,0.00013698,2]
[383650527,1757070633724,-480.0,0.00013698,2]
[383650528,1757070633733,-480.0,0.00013698,2]
[383650529,1757070633743,-1158.79,0.00013698,2]
[383650530,1757070633752,-480.0,0.00013698,2]
[383650531,1757070633763,-480.0,0.00013698,2]
[383650532,1757070633773,-1835.35,0.00013698,2]
[383650533,1757070633782,-480.0,0.00013698,2]
[383650534,1757070633792,-712.77,0.00013698,2]
[383650535,1757070633802,-480.0,0.00013698,2]
[383650536,1757070633812,-480.0,0.00013698,2]
[383650537,1757070633821,-480.0,0.00013698,2]
[383650538,1757070633831,-950.28,0.00013698,2]
[383650539,1757070633841,-480.0,0.00013698,2]
[383650540,1757070633852,-480.0,0.00013698,2]
[383650541,1757070633861,-480.0,0.00013698,2]
[383650542,1757070633871,-480.0,0.00013698,2]
[383650543,1757070633880,-480.0,0.00013698,2]
[383650544,1757070633889,-480.0,0.00013698,2]
[383650545,1757070633896,-487.38,0.00013698,2]
[383650546,1757070633904,-480.0,0.00013698,2]
[383650547,1757070633912,-651.73,0.00013698,2]
[383650548,1757070633920,-480.0,0.00013698,2]
[383650549,1757070633928,-480.0,0.00013698,2]
[383650550,1757070633936,-480.0,0.00013698,2]
[383650551,1757070633945,-480.0,0.00013698,2]
[383650552,1757070633955,-4132.16589021,0.00013698,2]
[383650553,1757070633968,-611.61166217,0.00013698,2]
[383650560,1757070643675,-305.74244762,0.00013698,2]
[383650561,1757070643685,-480.0,0.00013698,2]
[383650562,1757070643694,-480.0,0.00013698,2]
[383650563,1757070643704,-882.49,0.00013698,2]
[383650564,1757070643713,-166.0,0.00013698,2]
[383650565,1757070643723,-166.0,0.00013698,2]
[383650566,1757070643733,-166.0,0.00013698,2]
[383650567,1757070643742,-166.0,0.00013698,2]
[383650568,1757070643751,-166.0,0.00013698,2]
[383650569,1757070643760,-166.0,0.00013698,2]
[383650570,1757070643769,-1265.0,0.00013698,2]
[383650571,1757070643779,-480.0,0.00013698,2]
[383650572,1757070643789,-526.310678,0.00013699,2]
[383650573,1757070643798,-168.0,0.00013749,2]
[383650574,1757070643807,-244.24337603,0.00013756,2]
[383650575,1757070643816,-308.0,0.00013774,2]
[383650576,1757070643826,-308.0,0.00013818,2]
[383650577,1757070643835,-168.0,0.00013828,2]
[383650578,1757070643844,-244.24337603,0.00013835,2]
[383650581,1757070643853,-168.0,0.00013886,2]
[383650583,1757070643863,-917.59389597,0.00013914,2]
[383650586,1757070643872,-244.24337603,0.00013914,2]
[383650588,1757070643881,-239.92771901,0.00013947,2]
[383650589,1757070643891,-401.09488939,0.00013947,2]
[383650590,1757070643900,-500.0,0.00013947,2]
[383650591,1757070643910,-500.0,0.00013947,2]
[383650592,1757070643919,-500.0,0.00013947,2]
[383650593,1757070643928,-500.0,0.00013947,2]
[383650594,1757070643939,-1810.65351658,0.00013949,2]
[383650595,1757070643948,-15814.65461795,0.00013949,2]
[383650596,1757070643965,-2601.87916527,0.00013949,2]
[383650597,1757070644067,-489.8112408,0.00013949,2]
[383650599,1757070646803,-480.0,0.00013698,2]
[383650600,1757070646813,-1303.37,0.00013698,2]
[383650601,1757070646823,-480.0,0.00013698,2]
[383650602,1757070646832,-13334.99710218,0.00013949,2]
[383650603,1757070646842,-284.300809,0.00013949,2]
[383650604,1757070646851,-167.565293,0.00013949,2]
[383650605,1757070646860,-151.0,0.00013949,2]
[383650606,1757070646871,-151.0,0.00013949,2]
[383650607,1757070646883,-151.0,0.00013949,2]
[383650608,1757070646892,-151.0,0.00013949,2]
[383650609,1757070646901,-151.0,0.00013949,2]
[383650610,1757070646912,-282.958365,0.00013949,2]
[383650611,1757070646922,-151.0,0.00013949,2]
[383650612,1757070646931,-151.0,0.00013949,2]
[383650613,1757070646943,-174.796989,0.00013949,2]
[383650614,1757070646954,-151.0,0.00013949,2]
[383650615,1757070646964,-151.0,0.00013949,2]
[383650616,1757070646974,-151.0,0.00013949,2]
[383650617,1757070646986,-169.132796,0.00013949,2]
[383650618,1757070646995,-151.0,0.00013949,2]
[383650619,1757070647004,-151.0,0.00013949,2]
[383650620,1757070647013,-151.0,0.00013949,2]
[383650621,1757070647023,-151.0,0.00013949,2]
[383650622,1757070647032,-151.0,0.00013949,2]
[383650623,1757070647042,-4709.2130213,0.00013949,2]
[383650624,1757070647052,-244.269636,0.00013949,2]
[383650625,1757070647061,-151.0,0.00013949,2]
[383650627,1757070647070,-151.0,0.00013949,2]
[383650629,1757070647080,-151.0,0.00013949,2]
[383650630,1757070647091,-151.0,0.00013949,2]
[383650631,1757070647100,-151.0,0.00013949,2]
[383650632,1757070647109,-151.0,0.00013949,2]
[383650633,1757070647119,-151.0,0.00013949,2]
[383650634,1757070647132,-151.0,0.00013949,2]
[383650635,1757070647142,-300.0,0.00013971,2]
[383650636,1757070647151,-300.0,0.00013971,2]
[383650637,1757070647161,-300.0,0.00013971,2]
[383650638,1757070647172,-300.0,0.00013971,2]
[383650639,1757070647181,-300.0,0.00013971,2]
[383650640,1757070647191,-300.0,0.00013971,2]
[383650641,1757070647200,-300.0,0.00013971,2]
[383650642,1757070647210,-300.0,0.00013971,2]
[383650643,1757070647220,-300.0,0.00013971,2]
[383650644,1757070647230,-300.0,0.00013971,2]
[383650645,1757070647239,-300.0,0.00013971,2]
[383650646,1757070647250,-300.0,0.00013971,2]
[383650647,1757070647260,-300.0,0.00013971,2]
[383650648,1757070647269,-300.0,0.00013971,2]
[383650649,1757070647279,-300.0,0.00013971,2]
[383650650,1757070647288,-600.0,0.00013971,2]
[383650651,1757070647298,-151.0,0.00013971,2]
[383650652,1757070647307,-153.871515,0.00013971,2]
[383650653,1757070647317,-151.0,0.00013971,2]
[383650654,1757070647326,-480.0,0.00013972,2]
[383650655,1757070647336,-480.0,0.00013972,2]
[383650656,1757070647346,-480.0,0.00013972,2]
[383650657,1757070647355,-171.88,0.00013972,2]
[383650658,1757070647364,-480.0,0.00013972,2]
[383650659,1757070647374,-480.0,0.00013972,2]
[383650660,1757070647383,-410.97829499,0.00013972,2]
[383650661,1757070647395,-480.0,0.00013972,2]
[383650662,1757070647404,-480.0,0.00013972,2]
[383650663,1757070647414,-249.346119,0.00013972,2]
[383650664,1757070647423,-480.0,0.00013972,2]
[383650665,1757070647433,-480.0,0.00013972,2]
[383650666,1757070647442,-480.0,0.00013972,2]
[383650667,1757070647452,-151.0,0.00013972,2]
[383650668,1757070647462,-151.0,0.00013972,2]
[383650669,1757070647471,-480.0,0.00013972,2]
[383650670,1757070647481,-480.0,0.00013972,2]
[383650671,1757070647490,-151.0,0.00013972,2]
[383650672,1757070647501,-151.0,0.00013972,2]
[383650673,1757070647510,-151.0,0.00013972,2]
[383650674,1757070647519,-151.0,0.00013972,2]
[383650675,1757070647529,-480.0,0.00013972,2]
[383650676,1757070647539,-480.0,0.00013972,2]
[383650677,1757070647548,-151.0,0.00013972,2]
[383650678,1757070647558,-151.0,0.00013972,2]
[383650679,1757070647567,-151.0,0.00013972,2]
[383650680,1757070647577,-263.98164116,0.00013972,2]
[383650681,1757070647587,-151.0,0.00013972,2]
[383650682,1757070647595,-480.0,0.00013972,2]
[383650683,1757070647605,-480.0,0.00013972,2]
[383650684,1757070647614,-186.37222639,0.00013972,2]
[383650685,1757070647623,-480.0,0.00013972,2]
[383650686,1757070647632,-480.0,0.00013972,2]
[383650687,1757070647641,-151.0,0.00013972,2]
[383650688,1757070647650,-480.0,0.00013972,2]
[383650689,1757070647660,-480.0,0.00013972,2]
[383650690,1757070647670,-480.0,0.00013972,2]
[383650691,1757070647679,-480.0,0.00013972,2]
[383650692,1757070647688,-480.0,0.00013972,2]
[383650693,1757070647698,-480.0,0.00013972,2]
[383650694,1757070647707,-480.0,0.00013972,2]
[383650695,1757070647716,-480.0,0.00013972,2]
[383650696,1757070647726,-480.0,0.00013972,2]
[383650697,1757070647734,-151.0,0.00013972,2]
[383650698,1757070647744,-151.0,0.00013972,2]
[383650699,1757070647753,-480.0,0.00013972,2]
[383650700,1757070647763,-480.0,0.00013972,2]
[383650701,1757070647772,-480.0,0.00013972,2]
[383650702,1757070647781,-480.0,0.00013972,2]
[383650703,1757070647790,-1097.59,0.00013972,2]
[383650704,1757070647799,-151.0,0.00013972,2]
[383650705,1757070647808,-151.0,0.00013972,2]
[383650706,1757070647817,-480.0,0.00013972,2]
[383650707,1757070647827,-480.0,0.00013972,2]
[383650708,1757070647836,-499.86,0.00013972,2]
[383650709,1757070647846,-712.11,0.00013972,2]
[383650710,1757070647855,-480.09,0.00013972,2]
[383650711,1757070647864,-151.0,0.00013972,2]
[383650712,1757070647873,-151.0,0.00013972,2]
[383650713,1757070647883,-736.65,0.00013972,2]
[383650714,1757070647901,-480.0,0.00013972,2]
[383650715,1757070647913,-480.0,0.00013972,2]
[383650716,1757070647922,-415.77480699,0.00013972,2]
[383650717,1757070647933,-2172.24,0.00013972,2]
[383650718,1757070647943,-151.0,0.00013972,2]
[383650719,1757070647952,-480.0,0.00013972,2]
[383650720,1757070647961,-480.0,0.00013972,2]
[383650721,1757070647970,-480.0,0.00013972,2]
[383650722,1757070647983,-480.0,0.00013972,2]
[383650723,1757070647994,-611.27593197,0.00013972,2]
[383650724,1757070648003,-480.0,0.00013972,2]
[383650725,1757070648012,-2285.74,0.00013972,2]
[383650726,1757070648022,-607.78,0.00013972,2]
[383650727,1757070648172,-480.0,0.00013972,2]
[383650728,1757070648182,-480.0,0.00013972,2]
[383650729,1757070648195,-30213.87,0.00013972,2]
[383650730,1757070648204,-664.59,0.00013972,2]
[383650731,1757070648214,-1037.33,0.00013972,2]
[383650732,1757070648224,-151.0,0.00013972,2]
[383650733,1757070648233,-151.0,0.00013972,2]
[383650734,1757070648244,-480.0,0.00013972,2]
[383650735,1757070648253,-602.72,0.00013972,2]
[383650736,1757070648263,-480.0,0.00013972,2]
[383650737,1757070648273,-540.24,0.00013972,2]
[383650738,1757070648283,-480.0,0.00013972,2]
[383650739,1757070648292,-480.0,0.00013972,2]
[383650740,1757070648302,-1028.69,0.00013972,2]
[383650741,1757070648311,-480.0,0.00013972,2]
[383650742,1757070648321,-726.66,0.00013972,2]
[383650743,1757070648331,-480.0,0.00013972,2]
[383650744,1757070648341,-1571.97,0.00013972,2]
[383650745,1757070648350,-480.0,0.00013972,2]
[383650746,1757070648362,-870.77,0.00013972,2]
[383650747,1757070648371,-480.0,0.00013972,2]
[383650748,1757070648381,-480.0,0.00013972,2]
[383650749,1757070648390,-1158.79,0.00013972,2]
[383650750,1757070648400,-480.0,0.00013972,2]
[383650751,1757070648409,-151.0,0.00013972,2]
[383650752,1757070648418,-157.585201,0.00013972,2]
[383650753,1757070648428,-1835.35,0.00013972,2]
[383650754,1757070648437,-480.0,0.00013972,2]
[383650755,1757070648446,-712.77,0.00013972,2]
[383650756,1757070648455,-480.0,0.00013972,2]
[383650757,1757070648465,-480.0,0.00013972,2]
[383650758,1757070648474,-950.28,0.00013972,2]
[383650759,1757070648484,-203.50944869,0.00013972,2]
[383650760,1757070648494,-480.0,0.00013972,2]
[383650761,1757070648504,-480.0,0.00013972,2]
[383650762,1757070648514,-480.0,0.00013972,2]
[383650763,1757070648524,-480.0,0.00013972,2]
[383650764,1757070648533,-487.38,0.00013972,2]
[383650765,1757070648543,-480.0,0.00013972,2]
[383650766,1757070648552,-651.73,0.00013972,2]
[383650767,1757070648562,-480.0,0.00013972,2]
[383650768,1757070648571,-241.512295,0.00013972,2]
[383650769,1757070648580,-226.01075462,0.00013972,2]
[383650770,1757070648589,-480.0,0.00013972,2]
[383650771,1757070648599,-5049.52,0.00013972,2]
[383650772,1757070648609,-480.0,0.00013972,2]
[383650773,1757070648618,-151.0,0.00013972,2]
[383650774,1757070648628,-151.0,0.00013972,2]
[383650775,1757070648638,-151.0,0.00013972,2]
[383650776,1757070648648,-185.007786,0.00013972,2]
[383650777,1757070648658,-164.014899,0.00013972,2]
[383650778,1757070648668,-151.0,0.00013972,2]
[383650779,1757070648679,-151.0,0.00013972,2]
[383650780,1757070648690,-480.0,0.00013972,2]
[383650781,1757070648700,-151.0,0.00013972,2]
[383650782,1757070648710,-151.0,0.00013972,2]
[383650783,1757070648720,-882.49,0.00013972,2]
[383650784,1757070648732,-151.0,0.00013972,2]
[383650785,1757070648742,-187.76524172,0.00013972,2]
[383650786,1757070648752,-1265.0,0.00013972,2]
[383650787,1757070648763,-480.0,0.00013972,2]
[383650788,1757070648773,-480.0,0.00013972,2]
[383650789,1757070648783,-1303.37,0.00013972,2]
[383650790,1757070648793,-500.0,0.00013973,2]
[383650791,1757070648804,-298.11812509,0.00013973,2]
[383650792,1757070648815,-501.86825132,0.00013973,2]
[383650793,1757070648824,-500.0,0.00013973,2]
[383650794,1757070648834,-500.0,0.00013973,2]
[383650795,1757070648843,-500.0,0.00013973,2]
[383650796,1757070648852,-151.0,0.00013973,2]
[383650797,1757070648862,-281.312631,0.00013973,2]
[383650798,1757070648872,-409.0,0.00013985,2]
[383650799,1757070648881,-425.254,0.00013985,2]
[383650800,1757070648892,-193.7387564,0.00013999,2]
[383650801,1757070648902,-500.0,0.00013999,2]
[383650802,1757070648912,-500.0,0.00013999,2]
[383650803,1757070648922,-600.5567553,0.00013999,2]
[383650804,1757070648933,-500.0,0.00013999,2]
[383650805,1757070648943,-500.0,0.00013999,2]
[383650806,1757070648952,-500.0,0.00013999,2]
[383650807,1757070648962,-500.0,0.00013999,2]
[383650808,1757070648972,-500.0,0.00013999,2]
[383650809,1757070648982,-151.0,0.00014,2]
[383650810,1757070648992,-151.0,0.00014,2]
[383650811,1757070649002,-151.0,0.00014,2]
[383650812,1757070649012,-151.0,0.00014,2]
[383650813,1757070649022,-194.640422,0.00014,2]
[383650814,1757070649032,-151.0,0.00014,2]
[383650815,1757070649043,-151.0,0.00014,2]
[383650816,1757070649053,-151.0,0.00014,2]
[383650817,1757070649063,-151.0,0.00014,2]
[383650818,1757070649073,-151.0,0.00014,2]
[383650819,1757070649083,-151.0,0.00014,2]
[383650820,1757070649093,-76559.50543792,0.00014,2]
[383650821,1757070649233,-811.46789569,0.00014,2]
[383650822,1757070649249,-2230.55386598,0.00014,2]
[383650823,1757070649302,-2599.81,0.00014,2]
[383650824,1757070689322,1000.0,0.00018595,20]
[383650835,1757071041615,152.14101171,0.00013598,2]
[383650839,1757071335527,200000.0,0.00029325,60]
[383650881,1757071536164,34909.23082531,0.0001358,2]
[383651112,1757071831909,-324.08921439,0.00013697,2]
[383651116,1757071831962,-875.91078561,0.00013697,2]
[383651117,1757071831972,-300.0,0.00013697,2]
[383651118,1757071831983,-480.0,0.00013698,2]
[383651119,1757071831993,-480.0,0.00013698,2]
[383651120,1757071832003,-480.0,0.00013698,2]
[383651121,1757071832015,-480.0,0.00013698,2]
[383651122,1757071832024,-480.0,0.00013698,2]
[383651123,1757071832033,-480.0,0.00013698,2]
[383651124,1757071832043,-480.0,0.00013698,2]
[383651126,1757071832052,-480.0,0.00013698,2]
[383651128,1757071832061,-481.89197739,0.00013698,2]
[383651129,1757071832070,-157.0,0.00013698,2]
[383651130,1757071832079,-232.21531837,0.00013698,2]
[383651131,1757071832089,-302.93562152,0.00013698,2]
[383651132,1757071832099,-480.0,0.00013698,2]
[383651133,1757071832109,-157.0,0.00013698,2]
[383651134,1757071832118,-297.42163264,0.00013698,2]
[383651135,1757071832127,-157.0,0.00013698,2]
[383651136,1757071832136,-480.0,0.00013698,2]
[383651137,1757071832145,-480.0,0.00013698,2]
[383651138,1757071832154,-480.0,0.00013698,2]
[383651139,1757071832163,-311.43193196,0.00013698,2]
[383651140,1757071832173,-480.0,0.00013698,2]
[383651141,1757071832182,-480.0,0.00013698,2]
[383651142,1757071832193,-480.0,0.00013698,2]
[383651143,1757071832202,-480.0,0.00013698,2]
[383651144,1757071832211,-480.0,0.00013698,2]
[383651145,1757071832220,-480.0,0.00013698,2]
[383651146,1757071832230,-480.0,0.00013698,2]
[383651147,1757071832239,-480.0,0.00013698,2]
[383651148,1757071832248,-480.0,0.00013698,2]
[383651149,1757071832258,-480.0,0.00013698,2]
[383651150,1757071832269,-480.0,0.00013698,2]
[383651151,1757071832279,-480.0,0.00013698,2]
[383651152,1757071832289,-480.0,0.00013698,2]
[383651153,1757071832299,-480.0,0.00013698,2]
[383651154,1757071832308,-480.0,0.00013698,2]
[383651155,1757071832317,-157.0,0.00013698,2]
[383651156,1757071832326,-500.0,0.00013698,2]
[383651157,1757071832336,-302.0,0.00013698,2]
[383651158,1757071832345,-302.0,0.00013698,2]
[383651159,1757071832355,-480.0,0.00013698,2]
[383651160,1757071832364,-480.0,0.00013698,2]
[383651161,1757071832373,-4628.72,0.00013698,2]
[383651162,1757071832382,-480.0,0.00013698,2]
[383651163,1757071832391,-480.0,0.00013698,2]
[383651164,1757071832400,-1159.58,0.00013698,2]
[383651165,1757071832410,-480.0,0.00013698,2]
[383651166,1757071832420,-480.0,0.00013698,2]
[383651167,1757071832429,-480.0,0.00013698,2]
[383651168,1757071832439,-495.42,0.00013698,2]
[383651169,1757071832448,-652.77,0.00013698,2]
[383651170,1757071832457,-480.0,0.00013698,2]